[Event "Skalica Masters 2020"]
[Site "Skalica"]
[Date "2020.08.24"]
[Round "1.1"]
[White "Sahidi, Samir"]
[Black "Jablonicky, Martin"]
[Result "1-0"]
[ECO "A39"]
[WhiteElo "2400"]
[BlackElo "2314"]
[Annotator "ChessBase"]
[PlyCount "99"]
[EventDate "2020.08.23"]
[EventType "tourn"]
[EventCountry "SVK"]
[TimeControl "40/5400+30:1800+30"]

1. d4 {[%emt 0:00:00]} Nf6 {[%emt 0:00:00]} 2. Nf3 {[%emt 0:00:00]} g6 {[%emt 0:00:00]} 3. c4 {[%emt 0:00:51]} Bg7 {[%emt 0:00:00]} 4. g3 {[%emt 0:00:46]} O-O {[%emt 0:00:07]} 5. Bg2 {[%emt 0:00:23]} c5 {[%emt 0:00:08]} 6. O-O {[%emt 0:02:20]} cxd4 {[%emt 0:00:07]} 7. Nxd4 {[%emt 0:00:20]} Nc6 {[%emt 0:00:07]} 8. Nc3 {[%emt 0:01:31]} Qa5 {[%emt 0:04:08]} 9. Nb3 {[%emt 0:03:06]} Qh5 {[%emt 0:00:07]} 10. Nd5 {[%emt 0:04:54]} d6 {[%emt 0:00:06]} 11. h4 {[%emt 0:01:45]} Nxd5 {[%emt 0:05:11]} 12. cxd5 {[%emt 0:02:08]} Ne5 {[%emt 0:00:20]} 13. Bg5 {[%emt 0:03:05]} f6 {[%emt 0:03:45]} 14. Bf4 {[%emt 0:01:29]} g5 {[%emt 0:00:42]} 15. Bxe5 {[%emt 0:01:30]} fxe5 {[%emt 0:00:28]} 16. hxg5 {[%emt 0:05:57]} Qxg5 {[%emt 0:00:07]} 17. Nd2 {[%emt 0:01:36]} Bf5 {[%emt 0:08:06]} 18. Nf3 {[%emt 0:05:41]} Qg4 {[%emt 0:01:35]} 19. Qd2 {[%emt 0:05:13]} Rac8 {[%emt 0:03:38]} 20. Rac1 {[%emt 0:01:12]} e4 {[%emt 0:10:55]} 21. Nh4 {[%emt 0:02:09]} Rxc1 {[%emt 0:06:13]} 22. Rxc1 {[%emt 0:01:03]} Rc8 {[%emt 0:35:00]} 23. Nxf5 {[%emt 0:02:12]} Rxc1+ {[%emt 0:01:47]} 24. Qxc1 {[%emt 0:00:11]} Qxf5 {[%emt 0:00:15]} 25. Qc2 {[%emt 0:03:14]} Qxd5 {[%emt 0:05:38]} 26. Bxe4 {[%emt 0:00:24]} Qxa2 {[%emt 0:03:58]} 27. Qc8+ {[%emt 0:01:19]} Kf7 {[%emt 0:06:03]} 28. Qf5+ {[%emt 0:01:57]} Ke8 {[%emt 0:00:17]} 29. Bxb7 {[%emt 0:02:14]} e6 {[%emt 0:03:00]} 30. Bc6+ {[%emt 0:07:34]} Ke7 {[%emt 0:00:01]} 31. Qg5+ {[%emt 0:01:07]} Bf6 {[%emt 0:02:41]} 32. Qg8 {[%emt 0:01:27]} Qb1+ {[%emt 0:00:52]} 33. Kh2 {[%emt 0:02:27]} Qg6 {[%emt 0:00:27]} 34. Qb8 {[%emt 0:00:39]} Bd4 {[%emt 0:00:34]} 35. e3 {[%emt 0:01:25]} Bb6 {[%emt 0:00:29]} 36. Qb7+ {[%emt 0:01:57]} Kf6 {[%emt 0:00:32]} 37. Be4 {[%emt 0:04:05]} Qh5+ {[%emt 0:00:27]} 38. Kg2 {[%emt 0:00:19]} d5 {[%emt 0:00:33]} 39. Bd3 {[%emt 0:01:23]} Qf7 {[%emt 0:00:26]} 40. Qb8 {[%emt 0:00:36]} Kg7 {[%emt 0:00:26]} 41. Qe5+ {[%emt 0:31:43]} Qf6 {[%emt 0:30:17]} 42. Qh5 {[%emt 0:00:26]} Qxb2 {[%emt 0:00:00]} 43. Qxh7+ {[%emt 0:00:00]} Kf8 {[%emt 0:00:00]} 44. Qh6+ {[%emt 0:00:00]} Ke7 {[%emt 0:00:00]} 45. g4 {[%emt 0:00:00]} Qf6 {[%emt 0:00:00]} 46. Qh5 {[%emt 0:00:00]} Kd6 {[%emt 0:00:00]} 47. g5 {[%emt 0:00:00]} Qc3 {[%emt 0:00:00]} 48. Bb5 {[%emt 0:00:00]} Qb2 {[%emt 0:00:00]} 49. Qe8 {[%emt 0:00:00]} Qg7 {[%emt 0:00:34]} 50. Qc6+ {[%emt 0:00:00]} 1-0

[Event "Skalica Masters 2020"]
[Site "Skalica"]
[Date "2020.08.24"]
[Round "1.3"]
[White "Schwarz, Dusan"]
[Black "Saric, Ivan"]
[Result "0-1"]
[ECO "E90"]
[WhiteElo "2297"]
[BlackElo "2646"]
[Annotator "ChessBase"]
[PlyCount "82"]
[EventDate "2020.08.23"]
[EventType "tourn"]
[EventCountry "SVK"]
[TimeControl "40/5400+30:1800+30"]

1. Nf3 {[%emt 0:06:07]} Nf6 {[%emt 0:04:44]} 2. c4 {[%emt 0:00:30]} g6 {[%emt 0:00:30]} 3. Nc3 {[%emt 0:00:30]} Bg7 {[%emt 0:00:30]} 4. d4 {[%emt 0:00:30]} O-O {[%emt 0:00:30]} 5. e4 {[%emt 0:00:30]} d6 {[%emt 0:00:30]} 6. h3 {[%emt 0:00:30]} e5 {[%emt 0:00:30]} 7. d5 {[%emt 0:00:30]} a5 {[%emt 0:00:30]} 8. g4 {[%emt 0:00:30]} Nfd7 {[%emt 0:00:30]} 9. Be3 {[%emt 0:00:30]} Nc5 {[%emt 0:00:30]} 10. Rg1 {[%emt 0:00:30]} Nba6 {[%emt 0:00:58]} 11. Be2 {[%emt 0:05:44]} Bd7 {[%emt 0:10:30]} 12. Qd2 {[%emt 0:10:47]} Na4 {[%emt 0:00:30]} 13. Nxa4 {[%emt 0:00:30]} Bxa4 {[%emt 0:00:30]} 14. b3 {[%emt 0:00:30]} Bd7 {[%emt 0:00:30]} 15. h4 {[%emt 0:00:30]} Nc5 {[%emt 0:00:30]} 16. Bxc5 {[%emt 0:09:46]} dxc5 {[%emt 0:00:05]} 17. a4 {[%emt 0:00:15]} c6 {[%emt 0:01:49]} 18. Qe3 {[%emt 0:09:04]} cxd5 {[%emt 0:08:58]} 19. cxd5 {[%emt 0:00:48]} Qb8 {[%emt 0:00:20]} 20. Nd2 {[%emt 0:13:09]} Rc8 {[%emt 0:05:37]} 21. h5 {[%emt 0:06:43]} b5 {[%emt 0:01:54]} 22. axb5 {[%emt 0:02:55]} Bxb5 {[%emt 0:00:05]} 23. hxg6 {[%emt 0:00:19]} hxg6 {[%emt 0:00:09]} 24. Bxb5 {[%emt 0:05:45]} Qxb5 {[%emt 0:00:11]} 25. Ra4 {[%emt 0:00:21]} c4 {[%emt 0:04:18]} 26. Qe2 {[%emt 0:08:12]} Qb7 {[%emt 0:07:45]} 27. bxc4 {[%emt 0:03:06]} Bf8 {[%emt 0:00:36]} 28. Qd3 {[%emt 0:02:58]} Qd7 {[%emt 0:05:39]} 29. Qc2 {[%emt 0:03:03]} Bc5 {[%emt 0:05:28]} 30. Ke2 {[%emt 0:01:07]} Ra6 {[%emt 0:00:00]} 31. g5 {[%emt 0:01:26]} Rb8 {[%emt 0:00:37]} 32. Nf3 {[%emt 0:01:35]} Rab6 {[%emt 0:03:27]} 33. Ra2 {[%emt 0:00:38]} Qh3 {[%emt 0:04:11]} 34. Nxe5 {[%emt 0:04:04]} Qh2 {[%emt 0:00:34]} 35. Nd3 {[%emt 0:00:10]} Qxg1 {[%emt 0:02:45]} 36. Nxc5 {[%emt 0:00:09]} Qg4+ {[%emt 0:00:24]} 37. f3 {[%emt 0:02:03]} Qxg5 {[%emt 0:04:37]} 38. Nd3 {[%emt 0:00:44]} Rb1 {[%emt 0:03:32]} 39. c5 {[%emt 0:01:45]} R8b3 {[%emt 0:09:07]} 40. c6 {[%emt 0:00:30]} Qg1 {[%emt 0:00:53]} 41. c7 {[%emt 0:08:59]} Re1+ {[%emt 0:00:17]} 0-1

[Event "Skalica Masters 2020"]
[Site "Skalica"]
[Date "2020.08.23"]
[Round "1.4"]
[White "Blohberger, Felix"]
[Black "Druska, Juraj"]
[Result "1/2-1/2"]
[ECO "C07"]
[WhiteElo "2467"]
[BlackElo "2515"]
[Annotator "ChessBase"]
[PlyCount "53"]
[EventDate "2020.08.23"]
[EventType "tourn"]
[EventCountry "SVK"]
[SourceTitle "playchess.com"]
[Source "ChessBase"]
[SourceQuality "1"]
[TimeControl "40/5400+30:1800+30"]

1. e4 {[%emt 0:00:00]} e6 {[%emt 0:00:00]} 2. d4 {[%emt 0:00:00]} d5 {[%emt 0:00:00]} 3. Nd2 {[%emt 0:00:00]} c5 {[%emt 0:00:09]} 4. Ngf3 {[%emt 0:01:22]} cxd4 {[%emt 0:00:26]} 5. Nxd4 {[%emt 0:03:11]} Nc6 {[%emt 0:00:17]} 6. Bb5 {[%emt 0:00:11]} Bd7 {[%emt 0:00:13]} 7. Nxc6 {[%emt 0:00:10]} bxc6 {[%emt 0:00:06]} 8. Bd3 {[%emt 0:00:13]} Qc7 {[%emt 0:00:15]} 9. Qe2 {[%emt 0:08:56]} Ne7 {[%emt 0:00:23]} 10. O-O {[%emt 0:01:19]} Ng6 {[%emt 0:00:33]} 11. Nf3 {[%emt 0:00:19]} Be7 {[%emt 0:00:23]} 12. e5 {[%emt 0:04:03]} c5 {[%emt 0:00:28]} 13. Re1 {[%emt 0:05:11]} O-O {[%emt 0:17:58]} 14. c4 {[%emt 0:10:34]} dxc4 {[%emt 0:18:37]} 15. Be4 {[%emt 0:05:39]} Bc6 {[%emt 0:02:15]} 16. Qxc4 {[%emt 0:02:21]} Rab8 {[%emt 0:02:14]} 17. b3 {[%emt 0:07:44]} Rfd8 {[%emt 0:01:06]} 18. Ba3 {[%emt 0:06:17]} Qa5 {[%emt 0:17:08]} 19. Bxc6 {[%emt 0:06:40]} Qxa3 {[%emt 0:00:10]} 20. g3 {[%emt 0:05:17]} Rb4 {[%emt 0:03:37]} 21. Qc2 {[%emt 0:01:24]} c4 {[%emt 0:05:57]} 22. Be4 {[%emt 0:07:43]} cxb3 {[%emt 0:07:08]} 23. axb3 {[%emt 0:00:28]} Qxb3 {[%emt 0:00:05]} 24. Qxb3 {[%emt 0:02:46]} Rxb3 {[%emt 0:00:03]} 25. Rxa7 {[%emt 0:02:19]} Bc5 {[%emt 0:01:51]} 26. Ra2 {[%emt 0:03:44]} Ne7 {[%emt 0:00:49]} 27. Kg2 {[%emt 0:00:30]} 1/2-1/2

[Event "Skalica Masters 2020"]
[Site "Skalica"]
[Date "2020.08.24"]
[Round "1.5"]
[White "Berkes, Ferenc"]
[Black "Donchenko, Alexander"]
[Result "1/2-1/2"]
[ECO "E20"]
[WhiteElo "2661"]
[BlackElo "2657"]
[Annotator "ChessBase"]
[PlyCount "21"]
[EventDate "2020.08.23"]
[EventType "tourn"]
[EventCountry "SVK"]
[TimeControl "40/5400+30:1800+30"]

1. d4 {[%emt 0:00:00]} Nf6 {[%emt 0:00:00]} 2. c4 {[%emt 0:00:15]} e6 {[%emt 0:00:00]} 3. Nc3 {[%emt 0:00:07]} Bb4 {[%emt 0:00:16]} 4. f3 {[%emt 0:00:11]} c5 {[%emt 0:00:49]} 5. d5 {[%emt 0:00:07]} d6 {[%emt 0:01:19]} 6. e4 {[%emt 0:00:10]} O-O {[%emt 0:00:18]} 7. Nge2 {[%emt 0:02:20]} b5 {[%emt 0:01:11]} 8. Nf4 {[%emt 0:04:37]} exd5 {[%emt 0:00:44]} 9. Nfxd5 {[%emt 0:02:42]} Nxd5 {[%emt 0:00:56]} 10. Qxd5 {[%emt 0:00:08]} Qb6 {[%emt 0:00:49]} 11. Bf4 {[%emt 0:02:57]} 1/2-1/2

[Event "Skalica Masters 2020"]
[Site "Skalica"]
[Date "2020.08.24"]
[Round "2.3"]
[White "Saric, Ivan"]
[Black "Blohberger, Felix"]
[Result "1/2-1/2"]
[ECO "B45"]
[WhiteElo "2646"]
[BlackElo "2467"]
[Annotator "ChessBase"]
[PlyCount "81"]
[EventDate "2020.08.23"]
[EventType "tourn"]
[EventCountry "SVK"]
[SourceTitle "playchess.com"]
[Source "ChessBase"]
[SourceQuality "1"]
[TimeControl "40/5400+30:1800+30"]

1. e4 {[%emt 0:00:00]} c5 {[%emt 0:00:00]} 2. Nf3 {[%emt 0:00:00]} e6 {[%emt 0:00:00]} 3. d4 {[%emt 0:00:00]} cxd4 {[%emt 0:00:03]} 4. Nxd4 {[%emt 0:00:00]} Nf6 {[%emt 0:00:12]} 5. Nc3 {[%emt 0:00:00]} Nc6 {[%emt 0:00:23]} 6. Nxc6 {[%emt 0:04:27]} bxc6 {[%emt 0:00:38]} 7. e5 {[%emt 0:00:02]} Nd5 {[%emt 0:00:07]} 8. Ne4 {[%emt 0:00:03]} Qc7 {[%emt 0:00:28]} 9. f4 {[%emt 0:00:06]} Qb6 {[%emt 0:00:22]} 10. c4 {[%emt 0:00:11]} Bb4+ {[%emt 0:00:16]} 11. Ke2 {[%emt 0:00:27]} f5 {[%emt 0:00:27]} 12. Nf2 {[%emt 0:00:39]} Ba6 {[%emt 0:00:37]} 13. Kf3 {[%emt 0:00:04]} Ne7 {[%emt 0:00:21]} 14. Be3 {[%emt 0:00:06]} Bc5 {[%emt 0:00:06]} 15. Bxc5 {[%emt 0:00:04]} Qxc5 {[%emt 0:00:05]} 16. Qd6 {[%emt 0:00:18]} Qa5 {[%emt 0:00:11]} 17. h4 {[%emt 0:09:27]} c5 {[%emt 0:01:56]} 18. Kg3 {[%emt 0:01:54]} Rd8 {[%emt 0:00:33]} 19. Rh3 {[%emt 0:10:40]} Nc8 {[%emt 0:00:29]} 20. Qd1 {[%emt 0:00:17]} d5 {[%emt 0:01:05]} 21. exd6 {[%emt 0:03:34]} Nxd6 {[%emt 0:06:20]} 22. Qe1 {[%emt 0:18:04]} Qxe1 {[%emt 0:00:21]} 23. Rxe1 {[%emt 0:00:04]} Bxc4 {[%emt 0:01:46]} 24. Bxc4 {[%emt 0:00:05]} Nxc4 {[%emt 0:00:05]} 25. b3 {[%emt 0:00:30]} Nb6 {[%emt 0:02:33]} 26. Rxe6+ {[%emt 0:09:41]} Kf7 {[%emt 0:00:55]} 27. Re5 {[%emt 0:00:41]} Rd5 {[%emt 0:01:31]} 28. Rxd5 {[%emt 0:03:27]} Nxd5 {[%emt 0:00:11]} 29. Nd3 {[%emt 0:00:03]} Nb4 {[%emt 0:39:37]} 30. Ne5+ {[%emt 0:00:55]} Ke6 {[%emt 0:02:56]} 31. Rh1 {[%emt 0:01:12]} Nxa2 {[%emt 0:02:51]} 32. Ra1 {[%emt 0:01:40]} Nc3 {[%emt 0:02:04]} 33. Ra6+ {[%emt 0:05:52]} Kd5 {[%emt 0:01:52]} 34. Rxa7 {[%emt 0:06:49]} Rb8 {[%emt 0:03:42]} 35. Rd7+ {[%emt 0:03:36]} Ke6 {[%emt 0:02:57]} 36. Rxg7 {[%emt 0:00:18]} Rxb3 {[%emt 0:01:06]} 37. Kh2 {[%emt 0:00:21]} Ne2 {[%emt 0:07:25]} 38. Rxh7 {[%emt 0:05:06]} Nxf4 {[%emt 0:00:50]} 39. Nd7 {[%emt 0:05:06]} Kd6 {[%emt 0:13:09]} 40. Nxc5 {[%emt 0:01:16]} Kxc5 {[%emt 0:00:06]} 41. Rf7 {[%emt 0:30:03]} 1/2-1/2

[Event "Skalica Masters 2020"]
[Site "Skalica"]
[Date "2020.08.24"]
[Round "2.4"]
[White "Yankelevich, Lev"]
[Black "Schwarz, Dusan"]
[Result "1-0"]
[ECO "B76"]
[WhiteElo "2461"]
[BlackElo "2297"]
[Annotator "RC"]
[PlyCount "121"]
[EventDate "2020.08.23"]
[EventType "tourn"]
[EventCountry "SVK"]
[SourceTitle "playchess.com"]
[Source "ChessBase"]
[SourceQuality "1"]
[TimeControl "40/5400+30:1800+30"]

1. e4 {[%emt 0:00:00]} c5 {[%emt 0:00:00]} 2. Nf3 {[%emt 0:00:00]} d6 {[%emt 0:00:00]} 3. d4 {[%emt 0:00:00]} cxd4 {[%emt 0:00:00]} 4. Nxd4 {[%emt 0:00:00]} Nf6 {[%emt 0:00:00]} 5. Nc3 {[%emt 0:00:19]} g6 {[%emt 0:00:05]} 6. Be3 {[%emt 0:00:30]} Bg7 {[%emt 0:00:30]} 7. f3 {[%emt 0:00:30]} O-O {[%emt 0:00:30]} 8. Qd2 {[%emt 0:00:30]} Nc6 {[%emt 0:00:30]} 9. O-O-O {[%emt 0:00:30]} d5 {[%emt 0:00:30]} 10. Nxc6 {[%emt 0:00:30]} bxc6 {[%emt 0:00:30]} 11. Bh6 {[%emt 0:00:30]} Bxh6 {[%emt 0:13:17]} 12. Qxh6 {[%emt 0:00:11]} Rb8 {[%emt 0:00:10]} 13. e5 {[%emt 0:01:42]} Ne8 {[%emt 0:03:06]} 14. h4 {[%emt 0:03:41]} f6 {[%emt 0:02:48]} 15. Bd3 {[%emt 0:09:38]} Bf5 {[%emt 0:18:02]} 16. Bxf5 {[%emt 0:16:46]} gxf5 {[%emt 0:00:07]} 17. Rh3 {[%emt 0:03:56]} Rf7 {[%emt 0:04:01]} 18. Rg3+ {[%emt 0:01:46]} Kh8 {[%emt 0:07:57]} 19. Qf4 {[%emt 0:14:47]} Qb6 {[%emt 0:04:55]} 20. b3 {[%emt 0:01:51]} Qb4 {[%emt 0:01:06]} 21. Qxb4 {[%emt 0:02:31]} Rxb4 {[%emt 0:00:06]} 22. exf6 {[%emt 0:11:13]} Nxf6 {[%emt 0:00:19]} 23. Rh3 {[%emt 0:00:19]} e5 {[%emt 0:06:21]} 24. Re1 {[%emt 0:00:54]} Re7 {[%emt 0:01:59]} 25. Ne2 {[%emt 0:01:23]} f4 {[%emt 0:10:11]} 26. a3 {[%emt 0:01:19]} Rbb7 {[%emt 0:00:04]} 27. g3 {[%emt 0:00:04]} Nh5 {[%emt 0:02:17]} 28. gxf4 {[%emt 0:00:42]} exf4 {[%emt 0:02:25]} 29. Rhh1 {[%emt 0:00:08]} c5 {[%emt 0:11:37]} 30. Nc3 {[%emt 0:01:06]} Nf6 {[%emt 0:03:26]} 31. Na4 {[%emt 0:00:47]} Rxe1+ {[%emt 0:04:26]} 32. Rxe1 {[%emt 0:00:31]} c4 {[%emt 0:01:21]} 33. bxc4 {[%emt 0:04:00]} dxc4 {[%emt 0:00:19]} 34. Re5 {[%emt 0:00:02]} Rg7 {[%emt 0:02:09]} 35. Rf5 {[%emt 0:00:15]} Rg1+ {[%emt 0:00:11]} 36. Kb2 {[%emt 0:00:16]} Kg7 {[%emt 0:00:26]} 37. Rxf4 {[%emt 0:00:13]} Rf1 {[%emt 0:00:30]} 38. Nc3 {[%emt 0:03:32]} h6 {[%emt 0:01:32]} 39. a4 {[%emt 0:00:18]} Nh5 {[%emt 0:00:27]} 40. Rxc4 {[%emt 0:01:01]} Rxf3 {[%emt 0:00:17]} 41. Rc7+ {[%emt 0:30:03]} Rf7 {[%emt 0:01:58]} 42. Rxf7+ {[%emt 0:00:00]} Kxf7 {[%emt 0:00:24]} 43. a5 {[%emt 0:00:00]} Ke6 {[%emt 0:11:29]} 44. Nb5 {[%emt 0:00:00]} Kd5 {[%emt 0:00:33]} 45. Nxa7 {[%emt 0:00:00]} Kc5 {[%emt 0:00:11]} 46. Kb3 {[%emt 0:00:00]} Ng3 {[%emt 0:05:35]} 47. c4 {[%emt 0:00:00]} Ne4 {[%emt 0:02:17]} 48. Nc8 {[%emt 0:00:00]} Nd2+ {[%emt 0:05:28]} 49. Kc3 {[%emt 0:00:00]} Nxc4 {[%emt 0:00:14]} 50. a6 {[%emt 0:00:00]} Na3 {[%emt 0:01:05]} 51. a7 {[%emt 0:00:00]} Nb5+ {[%emt 0:00:09]} 52. Kd3 {[%emt 0:00:00]} Nc7 {[%emt 0:00:36]} 53. Ne7 {[%emt 0:00:00]} Kb5 {[%emt 0:03:55]} 54. Nd5 {[%emt 0:00:00]} Na8 {[%emt 0:00:05]} 55. Kd4 {[%emt 0:00:00]} Ka6 {[%emt 0:01:39]} 56. Kc5 {[%emt 0:00:00]} Kxa7 {[%emt 0:00:21]} 57. Kc6 {[%emt 0:00:00]} h5 {[%emt 0:00:11]} 58. Nf4 {[%emt 0:00:00]} Kb8 {[%emt 0:00:49]} 59. Nxh5 {[%emt 0:00:00]} Kc8 {[%emt 0:02:08]} 60. Ng7 {[%emt 0:00:00]} Kd8 {[%emt 0:01:38]} 61. h5 {[%emt 0:00:00]} 1-0

[Event "Skalica Masters 2020"]
[Site "Skalica"]
[Date "2020.08.24"]
[Round "2.5"]
[White "Sahidi, Samir"]
[Black "Gazik, Viktor"]
[Result "1/2-1/2"]
[ECO "A32"]
[WhiteElo "2400"]
[BlackElo "2502"]
[Annotator "ChessBase"]
[PlyCount "90"]
[EventDate "2020.08.23"]
[EventType "tourn"]
[EventCountry "SVK"]
[SourceTitle "playchess.com"]
[Source "ChessBase"]
[SourceQuality "1"]
[TimeControl "40/5400+30:1800+30"]

1. d4 {[%emt 0:00:00]} Nf6 {[%emt 0:00:00]} 2. c4 {[%emt 0:00:08]} e6 {[%emt 0:00:00]} 3. Nf3 {[%emt 0:00:35]} c5 {[%emt 0:00:00]} 4. Nc3 {[%emt 0:01:19]} cxd4 {[%emt 0:00:07]} 5. Nxd4 {[%emt 0:00:13]} a6 {[%emt 0:00:06]} 6. Nc2 {[%emt 0:04:02]} b6 {[%emt 0:12:18]} 7. Bf4 {[%emt 0:07:36]} Bb7 {[%emt 0:04:47]} 8. Bd6 {[%emt 0:02:43]} Bxd6 {[%emt 0:12:25]} 9. Qxd6 {[%emt 0:00:08]} Nc6 {[%emt 0:00:04]} 10. e4 {[%emt 0:03:58]} Rc8 {[%emt 0:00:37]} 11. Be2 {[%emt 0:03:23]} Qe7 {[%emt 0:11:38]} 12. O-O-O {[%emt 0:04:40]} Qxd6 {[%emt 0:05:07]} 13. Rxd6 {[%emt 0:00:15]} Ke7 {[%emt 0:00:01]} 14. Rhd1 {[%emt 0:01:05]} Ne5 {[%emt 0:09:59]} 15. Rxb6 {[%emt 0:10:49]} Bxe4 {[%emt 0:00:20]} 16. Ne3 {[%emt 0:01:20]} Rc6 {[%emt 0:07:29]} 17. Rxc6 {[%emt 0:02:09]} Nxc6 {[%emt 0:00:02]} 18. f3 {[%emt 0:02:37]} Bg6 {[%emt 0:00:11]} 19. c5 {[%emt 0:01:54]} a5 {[%emt 0:00:02]} 20. Nc4 {[%emt 0:04:37]} Rb8 {[%emt 0:09:37]} 21. Nb6 {[%emt 0:01:47]} e5 {[%emt 0:00:15]} 22. Nb5 {[%emt 0:06:16]} Bf5 {[%emt 0:09:17]} 23. a3 {[%emt 0:03:30]} g5 {[%emt 0:03:12]} 24. Kd2 {[%emt 0:02:27]} h5 {[%emt 0:04:23]} 25. Ke3 {[%emt 0:04:39]} Be6 {[%emt 0:00:44]} 26. Rd2 {[%emt 0:04:03]} h4 {[%emt 0:00:48]} 27. Nd6 {[%emt 0:01:49]} Nd4 {[%emt 0:05:07]} 28. Bc4 {[%emt 0:01:36]} Bxc4 {[%emt 0:02:09]} 29. Ndxc4 {[%emt 0:00:22]} Nb3 {[%emt 0:01:45]} 30. Rd6 {[%emt 0:07:19]} Nxc5 {[%emt 0:01:21]} 31. Rxf6 {[%emt 0:02:23]} Kxf6 {[%emt 0:00:07]} 32. b4 {[%emt 0:00:05]} axb4 {[%emt 0:01:12]} 33. axb4 {[%emt 0:00:07]} Rxb6 {[%emt 0:00:16]} 34. Nxb6 {[%emt 0:00:16]} Na6 {[%emt 0:00:13]} 35. Nxd7+ {[%emt 0:01:38]} Ke7 {[%emt 0:01:09]} 36. b5 {[%emt 0:01:52]} Nc7 {[%emt 0:00:05]} 37. b6 {[%emt 0:02:18]} Kxd7 {[%emt 0:00:18]} 38. Ke4 {[%emt 0:01:16]} Ne6 {[%emt 0:01:06]} 39. Kxe5 {[%emt 0:00:57]} Kc6 {[%emt 0:00:42]} 40. Kf6 {[%emt 0:01:06]} Nf4 {[%emt 0:00:26]} 41. Kxf7 {[%emt 0:31:51]} Nxg2 {[%emt 0:18:59]} 42. Kf6 {[%emt 0:00:00]} Ne1 {[%emt 0:00:26]} 43. Kxg5 {[%emt 0:00:00]} Nxf3+ {[%emt 0:00:15]} 44. Kg4 {[%emt 0:00:00]} Nxh2+ {[%emt 0:00:02]} 45. Kxh4 {[%emt 0:00:00]} Kxb6 {[%emt 0:00:02]} 1/2-1/2

[Event "Skalica Masters 2020"]
[Site "Skalica"]
[Date "2020.08.25"]
[Round "4.1"]
[White "Jablonicky, Martin"]
[Black "Druska, Juraj"]
[Result "1/2-1/2"]
[ECO "A05"]
[WhiteElo "2314"]
[BlackElo "2515"]
[Annotator "ChessBase"]
[PlyCount "41"]
[EventDate "2020.08.23"]
[EventType "tourn"]
[EventCountry "SVK"]
[SourceTitle "playchess.com"]
[Source "ChessBase"]
[SourceQuality "1"]
[TimeControl "40/5400+30:1800+30"]

1. Nf3 {[%emt 0:03:17]} d5 {[%emt 0:00:00]} 2. g3 {[%emt 0:00:15]} Nf6 {[%emt 0:01:47]} 3. Bg2 {[%emt 0:00:09]} e6 {[%emt 0:00:05]} 4. O-O {[%emt 0:00:05]} Be7 {[%emt 0:00:06]} 5. d3 {[%emt 0:00:23]} O-O {[%emt 0:00:56]} 6. Nbd2 {[%emt 0:00:08]} c5 {[%emt 0:00:24]} 7. b3 {[%emt 0:00:06]} Nc6 {[%emt 0:03:02]} 8. Bb2 {[%emt 0:00:06]} b6 {[%emt 0:00:46]} 9. Ne5 {[%emt 0:00:20]} Nxe5 {[%emt 0:03:00]} 10. Bxe5 {[%emt 0:00:08]} Bb7 {[%emt 0:00:08]} 11. e4 {[%emt 0:04:17]} Qd7 {[%emt 0:23:25]} 12. Qe2 {[%emt 0:04:36]} Rfd8 {[%emt 0:07:08]} 13. f4 {[%emt 0:03:03]} dxe4 {[%emt 0:02:24]} 14. Nxe4 {[%emt 0:00:09]} Nxe4 {[%emt 0:00:16]} 15. Bxe4 {[%emt 0:00:07]} Bxe4 {[%emt 0:00:43]} 16. Qxe4 {[%emt 0:00:06]} Qd5 {[%emt 0:00:20]} 17. Rae1 {[%emt 0:01:21]} g6 {[%emt 0:04:57]} 18. g4 {[%emt 0:07:01]} Rac8 {[%emt 0:22:34]} 19. f5 {[%emt 0:06:25]} Qxe4 {[%emt 0:00:51]} 20. Rxe4 {[%emt 0:00:11]} exf5 {[%emt 0:00:09]} 21. gxf5 {[%emt 0:00:17]} 1/2-1/2

[Event "Skalica Masters 2020"]
[Site "Skalica"]
[Date "2020.08.26"]
[Round "5.1"]
[White "Schwarz, Dusan"]
[Black "Jablonicky, Martin"]
[Result "1-0"]
[ECO "E90"]
[WhiteElo "2297"]
[BlackElo "2314"]
[Annotator "RC"]
[PlyCount "83"]
[EventDate "2020.08.23"]
[EventType "tourn"]
[EventCountry "SVK"]
[SourceTitle "playchess.com"]
[Source "ChessBase"]
[SourceQuality "1"]
[TimeControl "40/5400+30:1800+30"]

1. d4 {[%emt 0:00:00]} Nf6 {[%emt 0:06:33]} 2. c4 {[%emt 0:00:00]} g6 {[%emt 0:00:05]} 3. Nc3 {[%emt 0:00:00]} Bg7 {[%emt 0:00:04]} 4. e4 {[%emt 0:00:09]} d6 {[%emt 0:00:04]} 5. h3 {[%emt 0:00:42]} O-O {[%emt 0:00:07]} 6. Be3 {[%emt 0:00:28]} c5 {[%emt 0:02:20]} 7. d5 {[%emt 0:00:48]} e6 {[%emt 0:00:33]} 8. Nf3 {[%emt 0:00:38]} exd5 {[%emt 0:00:00]} 9. exd5 {[%emt 0:01:00]} Re8 {[%emt 0:01:17]} 10. Bd3 {[%emt 0:01:05]} Nfd7 {[%emt 0:06:52]} 11. O-O {[%emt 0:02:12]} Ne5 {[%emt 0:00:39]} 12. Nxe5 {[%emt 0:12:42]} Bxe5 {[%emt 0:00:00]} 13. Qd2 {[%emt 0:00:30]} Nd7 {[%emt 0:00:27]} 14. Rae1 {[%emt 0:00:30]} Bg7 {[%emt 0:00:30]} 15. Bg5 {[%emt 0:00:30]} f6 {[%emt 0:00:10]} 16. Rxe8+ {[%emt 0:08:26]} Qxe8 {[%emt 0:00:05]} 17. Bh4 {[%emt 0:00:43]} Ne5 {[%emt 0:02:22]} 18. Re1 {[%emt 0:06:11]} Qf8 {[%emt 0:00:38]} 19. Bf1 {[%emt 0:12:53]} Bd7 {[%emt 0:05:40]} 20. f4 {[%emt 0:00:51]} Nf7 {[%emt 0:00:05]} 21. Ne4 {[%emt 0:04:27]} Nh6 {[%emt 0:00:06]} 22. Bf2 {[%emt 0:02:53]} Re8 {[%emt 0:07:57]} 23. Qa5 {[%emt 0:02:14]} f5 {[%emt 0:00:32]} 24. Ng5 {[%emt 0:01:54]} Rxe1 {[%emt 0:02:32]} 25. Bxe1 {[%emt 0:00:51]} Bxb2 {[%emt 0:04:14]} 26. Qxa7 {[%emt 0:01:27]} Bd4+ {[%emt 0:04:10]} 27. Bf2 {[%emt 0:09:37]} Bxf2+ {[%emt 0:06:18]} 28. Kxf2 {[%emt 0:00:04]} Bc8 {[%emt 0:02:29]} 29. Be2 {[%emt 0:03:07]} Nf7 {[%emt 0:00:34]} 30. Ne6 {[%emt 0:01:13]} Bxe6 {[%emt 0:00:11]} 31. dxe6 {[%emt 0:00:07]} Nd8 {[%emt 0:00:04]} 32. Bf3 {[%emt 0:02:13]} Qe7 {[%emt 0:00:10]} 33. Bd5 {[%emt 0:00:53]} Kg7 {[%emt 0:00:06]} 34. Qb6 {[%emt 0:06:25]} h6 {[%emt 0:02:03]} 35. a4 {[%emt 0:08:04]} g5 {[%emt 0:00:15]} 36. Qb2+ {[%emt 0:01:01]} Kg6 {[%emt 0:02:42]} 37. fxg5 {[%emt 0:04:31]} hxg5 {[%emt 0:00:51]} 38. Qe2 {[%emt 0:02:36]} Kf6 {[%emt 0:02:43]} 39. g4 {[%emt 0:02:20]} Nxe6 {[%emt 0:00:39]} 40. gxf5 {[%emt 0:00:18]} Nd8 {[%emt 0:07:14]} 41. Qxe7+ {[%emt 0:30:33]} Kxe7 {[%emt 0:30:07]} 42. a5 {[%emt 0:00:15]} 1-0